bitfinex/quotes_SOLUSD_20240826
["timestamp","ask_amount","ask_price","bid_price","bid_amount"]
[1724636784892,28.8793,158.95,158.82,15.8348]
[1724636784893,6.2931,158.91,158.82,15.8348]
[1724636785065,30.50366,158.94,158.82,15.8348]
[1724636785682,30.50366,158.92,158.82,15.8348]
[1724636785871,1.57352953,158.91,158.8,2.17079733]
[1724636786091,22.0452,158.89,158.78,16.2278]
[1724636786292,1.573777,158.88,158.78,16.2278]
[1724636786473,6.2948,158.86,158.78,16.2278]
[1724636786672,6.2948,158.86,158.74,30.50366]
[1724636786673,1.57394753,158.85,158.74,30.50366]
[1724636786870,1.57394753,158.85,158.74,46.73146]
[1724636787087,6.2956,158.84,158.74,16.2278]
[1724636787296,1.57416297,158.83,158.74,16.2278]
[1724636789691,7.86981379,158.84,158.74,16.2278]
[1724636789993,36.79926,158.84,158.74,16.2278]
[1724636790200,6.2956,158.84,158.75,21.25948085]
[1724636790570,6.2956,158.84,158.75,20.0]
[1724636790795,6.2956,158.84,158.76,45.0]
[1724636790973,1.57422275,158.85,158.76,45.0]
[1724636790974,6.2951,158.86,158.77,21.25865977]
[1724636791296,6.2951,158.86,158.78,45.0]
[1724636791497,6.2953,158.85,158.78,45.0]
[1724636791801,6.2957,158.84,158.78,1.25936237]
[1724636791974,6.2953,158.85,158.78,1.25936237]
[1724636792888,6.2953,158.85,158.76,1.2593532]
[1724636793092,6.2953,158.85,158.77,1.25934985]
[1724636793286,6.2953,158.85,158.77,21.25934985]
[1724636794669,36.79806,158.88,158.78,45.0]
[1724636794876,6.294,158.88,158.79,20.0]
[1724636795095,6.294,158.88,158.8,45.0]
[1724636795290,7.86787629,158.88,158.8,45.0]
[1724636796477,38.37153629,158.88,158.8,45.0]
[1724636797592,6.2944,158.87,158.8,45.0]
[1724636798596,32.07753629,158.88,158.8,45.0]
[1724636798793,1.57387629,158.88,158.8,45.0]
[1724636798973,22.0452,158.89,158.81,21.25909959]
[1724636799500,6.2928,158.91,158.82,45.0]
[1724636799802,22.044,158.93,158.83,20.9054807]
[1724636799985,22.044,158.93,158.84,45.0]
[1724636800298,6.5784,158.93,158.85,20.90540259]
[1724636800481,6.5784,158.93,158.86,1.25867218]
[1724636800684,30.50366,158.96,158.86,46.25867218]
[1724636800900,6.2912,158.96,158.87,20.0]
[1724636801099,6.2912,158.96,158.88,1.25849628]
[1724636804690,6.3643,158.97,158.88,46.25849628]
[1724636805011,12.6548,158.97,158.89,20.0]
[1724636805300,7.86386156,158.96,158.89,20.0]
[1724636806378,6.2909,158.96,158.89,20.0]
[1724636806604,6.2909,158.96,158.9,1.25845913]
[1724636807386,12.6549,158.97,158.9,1.25845913]
[1724636807600,6.2909,158.96,158.89,20.0]
[1724636807807,1.57307683,158.95,158.89,20.0]
[1724636808011,7.86397559,158.96,158.89,20.0]
[1724636809090,1.57307559,158.96,158.89,20.0]
[1724636809509,7.86427559,158.96,158.89,20.0]
[1724636814287,6.2912,158.96,158.9,1.25845777]
[1724636814917,6.2905,158.97,158.9,1.25845777]
[1724636815595,6.2905,158.97,158.89,20.0]
[1724636815811,6.2905,158.97,158.9,45.0]
[1724636816692,7.86333492,158.97,158.9,45.0]
[1724636818000,6.2909,158.96,158.89,20.0]
[1724636818210,1.5730231,158.95,158.89,20.0]
[1724636818514,6.2909,158.96,158.89,20.0]
[1724636818904,6.2905,158.97,158.9,1.25839994]
[1724636819096,6.2905,158.97,158.9,45.0]
[1724636819421,6.2901,158.98,158.9,45.0]
[1724636819718,36.75896,159.02,158.91,21.25828197]
[1724636819892,36.75896,159.02,158.92,45.0]
[1724636820108,36.75896,159.02,158.93,1.25814354]
[1724636820318,6.2896,159.0,158.93,1.25814354]
[1724636820819,1.57268002,159.01,158.92,45.0]
[1724636821003,6.2901,158.98,158.91,20.0]
[1724636821202,6.2901,158.98,158.89,20.0]
[1724636821203,1.57279889,158.97,158.89,20.0]
[1724636821521,1.57279889,158.97,158.9,45.0]
[1724636821693,1.57279889,158.97,158.91,20.0]
[1724636822800,7.86289839,158.98,158.91,20.0]
[1724636823007,6.2904,158.97,158.91,20.0]
[1724636823321,6.2904,158.97,158.89,21.25840714]
[1724636823504,6.2904,158.97,158.9,1.25840903]
[1724636825022,7.86341294,158.97,158.89,20.0]
[1724636825425,6.2904,158.97,158.9,1.25841854]
[1724636826015,12.17729504,158.99,158.9,1.25841854]
[1724636826204,12.17729504,158.99,158.9,45.0]
[1724636826535,1.57276272,158.98,158.91,20.0]
[1724636827629,18.46729504,158.99,158.92,1.25820766]
[1724636827921,18.46729504,158.99,158.92,45.0]
[1724636828124,6.29,158.99,158.92,45.0]
[1724636828330,6.2553,159.02,158.93,21.25807569]
[1724636828517,30.43280482,159.04,158.93,21.25807569]
[1724636828728,30.43280482,159.04,158.94,45.0]
[1724636828910,30.43280482,159.04,158.95,21.25798307]
[1724636829230,30.43280482,159.04,158.96,1.25798329]
[1724636829432,6.2885,159.02,158.96,1.25798329]
[1724636830204,1.57240403,159.01,158.95,20.0]
[1724636830410,6.2889,159.01,158.95,20.0]
[1724636831024,7.86204612,159.0,158.95,20.0]
[1724636831215,6.29,158.99,158.94,15.3487]
[1724636831510,1.57282486,159.03,158.9,15.3487]
[1724636831715,30.43280482,159.01,158.9,15.3487]
[1724636831920,67.29750423,159.04,158.9,15.3487]
[1724636831921,30.43280482,158.99,158.9,15.3487]
[1724636832135,97.73030905,159.04,158.9,15.3487]
[1724636832136,30.43280482,158.97,158.9,15.3487]
[1724636832345,36.72250482,158.99,158.9,15.3487]
[1724636833721,6.2897,158.99,158.91,45.0]
[1724636834711,1.5726894,158.98,158.91,45.0]
[1724636835527,6.2897,158.99,158.91,45.0]
[1724636836921,1.57274247,158.98,158.91,45.0]
[1724636837414,6.2897,158.99,158.91,45.0]
[1724636838416,67.29750423,159.04,158.91,45.0]
[1724636838417,32.00549937,159.03,158.91,45.0]
[1724636838630,6.289,159.01,158.93,6.0696]
[1724636838816,6.289,159.01,158.94,21.25800443]
[1724636843608,6.289,159.01,158.94,20.0]
[1724636844114,7.86181014,159.0,158.94,20.0]
[1724636845137,1.57251014,159.0,158.94,20.0]
[1724636845311,1.57251014,159.0,158.9,15.3487]
[1724636845312,30.43280482,158.99,158.9,15.3487]
[1724636845520,1.57288201,158.98,158.91,1.57497715]
[1724636845823,1.57288201,158.98,158.92,1.57497715]
[1724636846024,30.43280482,158.99,158.93,1.57497715]
[1724636846249,30.43280482,158.99,158.9,15.3487]
[1724636846418,6.2901,158.98,158.91,1.57501169]
[1724636846741,30.43280482,159.01,158.92,2.83331641]
[1724636847040,7.86188976,159.0,158.93,1.57501169]
[1724636847214,6.2893,159.0,158.94,1.57501169]
[1724636847541,1.57255699,158.99,158.93,45.0]
[1724636847738,1.57255699,158.99,158.94,1.57487533]
[1724636847941,7.86225699,158.99,158.93,45.0]
[1724636848141,6.2897,158.99,158.94,1.57490556]
[1724636848347,7.86232139,158.99,158.93,45.0]
[1724636848723,1.57262139,158.99,158.94,1.57490564]
[1724636849042,18.46249325,159.01,158.92,12.17319325]
[1724636849246,18.46249325,159.01,158.93,67.8328664]
[1724636849425,18.46249325,159.01,158.94,1.57484095]
[1724636849624,18.46249325,159.01,158.93,65.0]
[1724636849842,18.46249325,159.01,158.94,1.57484073]
[1724636850024,18.46249325,159.01,158.93,65.0]
[1724636850351,18.46249325,159.01,158.94,1.57484192]
[1724636850545,18.46249325,159.01,158.93,65.0]
[1724636850853,1.57254752,159.0,158.94,1.57484192]
[1724636851144,1.57254752,159.0,158.93,65.0]
[1724636851456,1.57254752,159.0,158.94,1.57484214]
[1724636851617,1.57254752,159.0,158.93,65.0]
[1724636851820,1.57254752,159.0,158.94,1.57484214]
[1724636852126,1.57254752,159.0,158.93,65.0]
[1724636852325,1.57254752,159.0,158.94,1.57484214]
[1724636852527,18.46249325,159.01,158.93,65.0]
[1724636852740,18.46249325,159.01,158.94,1.57484214]
[1724636852928,18.46249325,159.01,158.95,1.57484214]
[1724636853130,18.46249325,159.01,158.93,65.0]
[1724636853339,18.46249325,159.01,158.94,1.57482374]
[1724636853548,18.46249325,159.01,158.95,1.57482374]
[1724636853847,1.57254447,159.0,158.93,65.0]
[1724636854026,1.57254447,159.0,158.94,1.57481971]
[1724636854226,1.57254447,159.0,158.95,1.57481971]
[1724636854420,1.57254447,159.0,158.93,65.0]
[1724636854750,18.46249325,159.01,158.94,1.57481091]
[1724636855051,18.46249325,159.01,158.95,1.57481091]
[1724636855228,18.46249325,159.01,158.93,65.0]
[1724636855427,18.46249325,159.01,158.94,1.57481957]
[1724636855629,18.46249325,159.01,158.95,1.57481957]
[1724636855828,1.57254608,159.0,158.93,65.0]
[1724636856030,1.57254608,159.0,158.94,1.57481995]
[1724636856230,1.57254608,159.0,158.95,1.57481995]
[1724636856525,1.57254608,159.0,158.93,65.0]
[1724636856834,1.57254608,159.0,158.94,1.57481951]
[1724636857029,1.57254608,159.0,158.95,1.57481951]
[1724636857245,1.57254608,159.0,158.93,65.0]
[1724636857426,1.57254608,159.0,158.94,1.57481928]
[1724636857625,1.57254608,159.0,158.95,1.57481928]
[1724636857832,1.57254608,159.0,158.93,65.0]
[1724636858051,1.57254608,159.0,158.94,1.57481944]
[1724636858428,1.57254608,159.0,158.95,1.57481944]
[1724636858630,1.57254608,159.0,158.93,65.0]
[1724636858829,1.57254608,159.0,158.94,1.57481979]
[1724636859030,1.57254608,159.0,158.95,1.57481979]
[1724636859243,1.57254608,159.0,158.93,65.0]
[1724636859459,1.57254608,159.0,158.94,1.57481964]
[1724636859659,18.46249325,159.01,158.95,2.83285462]
[1724636859856,6.2893,159.01,158.96,1.25803498]
[1724636860062,6.2893,159.01,158.94,1.25803498]
[1724636860359,6.2893,159.01,158.95,1.57481884]
[1724636860551,6.2893,159.01,158.94,1.25803498]
[1724636860728,15.807,159.05,158.95,13.43122817]
[1724636861061,12.17319325,159.05,158.96,25.16933366]
[1724636861279,6.288,159.04,158.96,21.25781633]
[1724636862146,18.46129325,159.03,158.96,21.25781633]
[1724636864059,6.2886,159.02,158.96,21.25781633]
[1724636864242,12.17319325,159.01,158.96,20.0]
[1724636865163,18.46219325,159.01,158.96,20.0]
[1724636865662,18.46219325,159.01,158.96,21.25802677]
[1724636869744,6.2885,159.02,158.96,21.25802677]
[1724636870342,6.2881,159.03,158.96,21.25802677]
[1724636870568,6.2876,159.05,158.97,45.0]
[1724636870866,18.46089325,159.04,158.98,1.25777012]
[1724636871075,18.46089325,159.04,158.97,45.0]
[1724636871841,18.46089325,159.04,158.98,1.25777267]
[1724636872069,6.2883,159.03,158.98,1.25777267]
[1724636872364,6.2887,159.02,158.96,20.0]
[1724636872668,7.86031584,159.03,158.96,20.0]
[1724636874753,12.17319325,159.02,158.96,20.0]
[1724636874954,1.57242333,159.01,158.96,20.0]
[1724636875551,12.17319325,159.02,158.96,20.0]
[1724636876563,12.17319325,159.02,158.97,1.25793853]
[1724636878673,6.2881,159.03,158.97,1.25793853]
[1724636878884,18.46129325,159.03,158.97,1.25793853]
[1724636879053,12.17319325,159.03,158.97,1.25793853]
[1724636880147,37.51254205,159.09,158.97,1.25793853]
[1724636880148,12.17319325,159.05,158.97,1.25793853]
[1724636880349,12.17319325,159.03,158.96,20.0]
[1724636880647,1.5723725,159.02,158.96,20.0]
[1724636882279,18.46139325,159.03,158.96,20.0]
[1724636882987,18.46139325,159.03,158.97,1.25785384]
[1724636883481,12.17319325,158.98,158.93,15.2934]
[1724636883782,12.17319325,158.96,158.93,15.2934]
[1724636884557,12.17319325,158.96,158.89,22.89401431]
[1724636884753,12.17319325,158.92,158.9,3.91303743]
[1724636884963,12.17319325,158.92,158.89,16.3088]
[1724636886970,18.46499325,158.94,158.89,16.3088]
[1724636887377,18.46439325,158.96,158.9,1.25853668]
[1724636887983,12.17319325,158.96,158.9,21.25853668]
[1724636888171,12.17319325,158.96,158.9,20.0]
[1724636889283,6.2899,158.99,158.91,1.25829258]
[1724636889489,18.46309325,158.99,158.91,52.38969258]
[1724636889792,18.46309325,158.99,158.92,20.0]
[1724636890000,18.46309325,158.99,158.93,1.25823695]
[1724636890366,18.46309325,158.99,158.92,20.0]
[1724636892193,1.57281693,158.98,158.92,20.0]
[1724636892801,18.46309325,158.99,158.92,20.0]
[1724636894071,6.2899,158.99,158.93,1.25817046]
[1724636894579,6.2899,158.99,158.92,20.0]
[1724636896302,12.17319325,158.98,158.92,20.0]
[1724636896794,20.03598134,158.98,158.92,20.0]
[1724636897181,18.46329325,158.98,158.92,20.0]
[1724636897417,18.46329325,158.98,158.93,1.25825831]
[1724636899534,18.46329325,158.98,158.92,20.0]
[1724636901834,12.17319325,158.94,158.89,16.3088]
[1724636902153,12.17319325,158.9,158.85,16.3688]
[1724636902358,12.17319325,158.88,158.85,16.3688]
[1724636902556,1.57362947,158.87,158.79,6.5443]
[1724636902864,12.17319325,158.86,158.8,3.91489687]
[1724636903063,12.17319325,158.84,158.79,6.5443]
[1724636904150,32.06550393,158.86,158.79,6.5443]
[1724636904654,38.36030393,158.86,158.79,6.5443]
[1724636904847,36.78629808,158.86,158.76,16.3688]
[1724636905748,36.78629808,158.86,158.77,20.0]
[1724636907333,36.78579808,158.88,158.77,20.0]
[1724636907555,6.2943,158.88,158.78,46.25913427]
[1724636907746,6.2943,158.88,158.79,20.0]
[1724636908065,36.78579808,158.88,158.8,1.25907051]
[1724636908249,1.57398104,158.87,158.79,20.0]
[1724636908438,30.49149808,158.86,158.79,20.0]
[1724636908645,32.06562524,158.86,158.77,20.0]
[1724636908960,36.78629808,158.86,158.78,1.2593002]
[1724636909154,30.49149808,158.88,158.78,1.2593002]
[1724636909467,36.78549808,158.88,158.78,46.2593002]
[1724636909666,36.78549808,158.88,158.79,20.0]
[1724636909667,7.86874323,158.87,158.79,20.0]
[1724636910043,30.49149808,158.86,158.79,20.0]
[1724636910247,36.78629808,158.86,158.79,20.0]
[1724636910560,36.78629808,158.86,158.8,1.25924996]
[1724636912863,6.2948,158.86,158.8,1.25924996]
[1724636915571,6.2953,158.85,158.79,20.0]
[1724636915756,7.86934267,158.85,158.77,20.0]
[1724636916088,6.2953,158.85,158.78,1.25933135]
[1724636917669,36.78629808,158.86,158.78,1.25933135]
[1724636917984,36.78629808,158.86,158.78,46.25933135]
[1724636918287,7.86936275,158.85,158.79,20.0]
[1724636918661,7.86936275,158.85,158.77,20.0]
[1724636920586,6.2953,158.85,158.77,20.0]
[1724636920767,36.78639808,158.86,158.77,20.0]
[1724636920966,36.78639808,158.86,158.78,1.25932891]
[1724636921295,7.86946242,158.85,158.77,20.0]
[1724636923257,30.49149808,158.84,158.77,20.0]
[1724636923462,1.57420305,158.83,158.77,20.0]
[1724636924080,12.20001056,158.82,158.77,20.0]
[1724636924691,13.77432167,158.82,158.77,20.0]
[1724636926474,12.20001056,158.82,158.77,20.0]
[1724636926666,12.20001056,158.82,158.77,21.2595035]
[1724636926863,18.49561056,158.84,158.77,21.2595035]
[1724636927313,18.49561056,158.84,158.77,20.0]
[1724636927793,1.5741896,158.83,158.77,20.0]
[1724636928093,18.49561056,158.84,158.77,20.0]
[1724636928761,12.20001056,158.82,158.77,20.0]
[1724636928968,13.77433356,158.82,158.77,20.0]
[1724636929688,12.20001056,158.82,158.77,20.0]
[1724636929883,13.77439574,158.82,158.77,20.0]
[1724636930289,12.20001056,158.82,158.77,20.0]
[1724636930468,13.77439298,158.82,158.77,20.0]
[1724636931194,12.20001056,158.82,158.77,20.0]
[1724636935696,1.57441986,158.81,158.77,20.0]
[1724636936693,12.20001056,158.8,158.77,20.0]
[1724636941288,12.20001056,158.8,158.76,16.3688]
[1724636942421,1.57455877,158.79,158.71,21.8057]
[1724636942703,1.57455877,158.79,158.72,65.0]
[1724636943702,12.20001056,158.8,158.72,65.0]
[1724636944080,12.20001056,158.8,158.73,1.57658903]
[1724636944273,12.20001056,158.82,158.74,1.25964427]
[1724636944585,12.20001056,158.82,158.74,13.45965483]
[1724636944783,12.20001056,158.82,158.75,65.0]
[1724636944997,1.574379,158.81,158.75,65.0]
[1724636946487,12.20001056,158.82,158.75,65.0]
[1724636946710,12.20001056,158.82,158.76,1.25950028]
[1724636947095,12.20001056,158.82,158.75,65.0]
[1724636947433,1.57437469,158.81,158.76,1.57652829]
[1724636947607,12.20001056,158.82,158.75,20.0]
[1724636947811,12.20001056,158.82,158.76,1.2595333]
[1724636948103,20.07082833,158.82,158.73,5.49345645]
[1724636948405,20.07082833,158.82,158.74,66.57655102]
[1724636948609,18.49641056,158.82,158.75,1.57655102]
[1724636948785,18.49641056,158.82,158.76,1.57658196]
[1724636949108,18.49641056,158.82,158.75,1.25953246]
[1724636949287,18.49641056,158.82,158.76,1.57658763]
[1724636949614,18.49641056,158.82,158.75,1.25953246]
[1724636949786,18.49641056,158.82,158.76,1.57655381]
[1724636950113,18.49641056,158.82,158.75,1.25953246]
[1724636950415,12.20001056,158.8,158.74,65.0]
[1724636950600,12.20001056,158.8,158.75,1.57662925]
[1724636950790,12.20001056,158.8,158.72,20.0]
[1724636950995,12.20001056,158.8,158.73,45.0]
[1724636951293,18.49811056,158.78,158.74,1.57663977]
[1724636951494,12.20001056,158.76,158.71,15.6804]
[1724636952188,12.20001056,158.76,158.72,1.57694238]
[1724636952381,12.20001056,158.78,158.71,15.6804]
[1724636952617,12.20001056,158.78,158.73,1.25993651]
[1724636952783,18.49721056,158.8,158.72,46.57695456]
[1724636952991,23.1123,158.85,158.73,26.7538752]
[1724636953294,23.1123,158.85,158.74,46.57695456]
[1724636953295,12.20001056,158.83,158.74,46.57695456]
[1724636953502,12.20001056,158.83,158.75,22.83648751]
[1724636953722,18.49601056,158.83,158.76,1.57645988]
[1724636954042,20.07042772,158.83,158.75,20.0]
[1724636954315,18.49601056,158.83,158.75,20.0]
[1724636954526,18.49601056,158.83,158.76,1.25953279]
[1724636954723,1.57441794,158.82,158.75,20.0]
[1724636955919,6.58244812,158.87,158.77,15.3839]
[1724636956103,12.20001056,158.86,158.78,21.25930446]
[1724636956418,21.9777,158.89,158.78,32.20001056]
[1724636956419,20.06809163,158.88,158.78,32.20001056]
[1724636956597,20.06809163,158.88,158.79,45.0]
[1724636956800,13.77409163,158.88,158.8,20.0]
[1724636956997,20.06819163,158.88,158.8,20.0]
[1724636957356,12.20001056,158.86,158.8,20.0]
[1724636959305,1.57394105,158.85,158.8,20.0]
[1724636959602,1.57394105,158.85,158.78,20.0]
[1724636960911,13.77405037,158.86,158.78,20.0]
[1724636962724,13.77405037,158.86,158.77,15.3839]
[1724636962725,12.20001056,158.84,158.77,15.3839]
[1724636962935,6.5041,158.86,158.65,6.5835689]
[1724636962936,12.20001056,158.8,158.73,22.9094]
[1724636963239,12.20001056,158.8,158.74,3.91668999]
[1724636963413,12.20001056,158.8,158.73,22.9094]
[1724636964324,12.20001056,158.8,158.74,20.0]
[1724636964539,12.20001056,158.84,158.75,1.25961939]
[1724636964712,18.49571056,158.84,158.75,5.17638301]
[1724636965045,18.49571056,158.84,158.76,20.0]
[1724636965222,18.49571056,158.84,158.77,1.25943477]
[1724636966132,18.49571056,158.84,158.76,1.25947493]
[1724636971042,6.296,158.83,158.76,1.25947493]
[1724636971614,12.20001056,158.84,158.75,20.0]
[1724636971615,12.20001056,158.84,158.77,1.25947656]
[1724636972740,18.49571056,158.84,158.76,45.0]
[1724636973039,1.57422229,158.83,158.76,45.0]
[1724636973235,12.20001056,158.82,158.75,20.0]
[1724636973543,13.77436249,158.82,158.74,20.0]
[1724636973726,13.77436249,158.82,158.75,48.91686686]
[1724636973926,13.77436249,158.82,158.76,20.0]
[1724636976620,20.07086249,158.82,158.76,20.0]
[1724636976822,6.2973,158.8,158.74,18.0]
[1724636977022,7.87132757,158.81,158.74,18.0]
[1724636977327,6.2968,158.81,158.74,18.0]
[1724636978343,18.49641056,158.82,158.74,18.0]
[1724636978740,18.49641056,158.82,158.75,1.25958787]
[1724636980556,12.20001056,158.8,158.75,3.91694347]
[1724636980720,12.20001056,158.8,158.64,48.80004224]
[1724636980721,18.49811056,158.78,158.69,6.176]
[1724636980920,18.49811056,158.78,158.69,22.7076]
[1724636980921,1.57485327,158.77,158.69,22.7076]
[1724636981222,1.57485327,158.77,158.7,3.91787]
[1724636982220,1.57485327,158.77,158.7,23.91787]
[1724636982449,1.57485327,158.77,158.7,20.0]
[1724636988636,18.49811056,158.78,158.71,1.25988025]
[1724636988830,6.2981,158.78,158.71,66.25988025]
[1724636989034,18.49811056,158.78,158.71,66.25988025]
[1724636989228,6.2981,158.78,158.71,65.0]
[1724636989446,18.49811056,158.78,158.71,65.0]
[1724636990553,12.20001056,158.76,158.71,20.0]
[1724636990741,12.20001056,158.76,158.7,20.0]
[1724636990945,12.20001056,158.76,158.7,65.0]
[1724636992177,1.57494203,158.75,158.7,20.0]
[1724636992358,18.49801056,158.78,158.7,20.0]
[1724636992559,1.57492702,158.77,158.7,20.0]
[1724636994052,18.49801056,158.78,158.71,1.25993934]
[1724636997178,18.49801056,158.78,158.7,20.0]
[1724636997750,1.57486063,158.77,158.7,20.0]
[1724636997973,13.77486213,158.76,158.7,20.0]
[1724636998173,12.20001056,158.76,158.65,16.2812]
[1724636998361,12.20001056,158.76,158.66,3.91857872]
[1724636998559,18.49911056,158.76,158.66,3.91857872]
[1724636999275,18.49911056,158.76,158.65,28.48121056]
[1724636999464,18.49911056,158.76,158.66,65.0]
[1724637001474,18.49961056,158.74,158.66,20.0]
[1724637001650,1.57521698,158.73,158.66,20.0]
[1724637003486,12.20001056,158.72,158.66,20.0]
[1724637003691,12.20001056,158.72,158.62,32.20001056]
[1724637003988,12.20001056,158.72,158.63,45.0]
[1724637004278,12.20001056,158.72,158.64,20.0]
[1724637004457,12.20001056,158.72,158.65,45.0]
[1724637004658,12.20001056,158.72,158.66,20.0]
[1724637005256,12.20001056,158.7,158.66,20.0]
[1724637005581,1.57552409,158.69,158.61,28.47661056]
[1724637006469,1.57552646,158.69,158.61,16.2766]
[1724637006672,7.87712646,158.69,158.61,16.2766]
[1724637006871,12.20001056,158.68,158.59,12.20001056]
[1724637008374,12.20001056,158.68,158.64,6.3032]
[1724637009161,18.62691056,158.68,158.64,6.3032]
[1724637013072,1.57580531,158.67,158.64,6.3032]
[1724637015196,1.57580531,158.67,158.62,6.304]
[1724637015403,1.57580531,158.67,158.56,5.65020468]
[1724637015404,12.20001056,158.64,158.56,5.65020468]
[1724637015686,12.20001056,158.64,158.6,6.305]
[1724637016877,13.77614233,158.64,158.6,6.305]
[1724637017414,18.50281056,158.66,158.61,6.3047]
[1724637018785,12.20001056,158.64,158.61,6.3047]
[1724637020211,12.20001056,158.64,158.6,6.3051]
[1724637020370,1.57619964,158.63,158.6,6.3051]
[1724637020771,12.20001056,158.64,158.6,6.3051]
[1724637021295,20.07981439,158.64,158.59,6.3055]
[1724637023769,12.20001056,158.62,158.55,1.26097651]
[1724637023994,18.75741056,158.62,158.54,65.8185039]
[1724637024197,18.75741056,158.62,158.58,6.3059]
[1724637025272,12.20001056,158.6,158.54,20.8185039]
[1724637025471,12.20001056,158.58,158.54,0.8185039]
[1724637026200,12.20001056,158.56,158.54,0.8185039]
[1724637026902,12.20001056,158.56,158.54,7.1259039]
[1724637027602,12.20001056,158.58,158.54,7.1259039]
[1724637028401,12.20001056,158.58,158.55,6.3071]
[1724637029192,12.20001056,158.6,158.56,6.3065]
[1724637029906,12.20001056,158.6,158.54,7.1256039]
[1724637030106,13.77653547,158.6,158.55,6.3071]
[1724637032488,20.08163547,158.6,158.55,6.3071]
[1724637032692,12.20001056,158.58,158.54,0.8185039]
[1724637033309,12.20001056,158.56,158.54,0.8185039]
[1724637034086,12.20001056,158.58,158.54,0.8185039]
[1724637034698,12.20001056,158.58,158.54,45.8185039]
[1724637036200,1.57652727,158.61,158.54,45.8185039]
[1724637036400,12.20001056,158.59,158.54,52.1260039]
[1724637036602,18.50561056,158.59,158.54,52.1260039]
[1724637038919,12.20001056,158.57,158.54,45.8185039]
[1724637045008,12.20001056,158.59,158.54,45.8185039]
[1724637045624,1.57653863,158.61,158.54,58.01851446]
[1724637045925,22.8047,158.67,158.62,6.3043]
[1724637046122,1.57576697,158.69,158.63,45.0]
[1724637046298,1.57576697,158.69,158.63,51.3038]
[1724637046299,6.3016,158.69,158.63,51.3038]
[1724637046503,6.3016,158.69,158.64,1.26058217]
[1724637046999,7.87772665,158.68,158.6,12.20001056]
[1724637047323,6.3024,158.67,158.62,6.3042]
[1724637047636,6.3024,158.67,158.6,6.3048]
[1724637047637,12.20001056,158.66,158.6,6.3048]
[1724637047797,6.3035,158.65,158.59,16.6485]
[1724637048000,6.3035,158.65,158.59,22.954]
[1724637048001,7.87961233,158.65,158.59,22.954]
[1724637048625,6.3035,158.65,158.59,22.954]
[1724637048999,7.87961378,158.65,158.59,22.954]
[1724637049494,6.3035,158.65,158.59,22.954]
[1724637049699,6.3035,158.65,158.6,6.305]
[1724637050406,7.87961498,158.65,158.6,6.305]
[1724637051828,13.77612725,158.64,158.56,6.3063]
[1724637052013,18.50461056,158.62,158.57,26.3063]
[1724637052203,20.08109702,158.62,158.57,26.3063]
[1724637053609,20.08109702,158.62,158.57,6.3063]
[1724637054121,20.08109702,158.62,158.56,6.3067]
[1724637054806,6.3046,158.62,158.56,7.56791792]
[1724637055006,6.3046,158.62,158.56,6.3067]
[1724637055307,18.50491056,158.61,158.55,6.3071]
[1724637056005,1.57652484,158.6,158.55,6.3071]
[1724637057452,7.88162484,158.6,158.55,6.3071]
[1724637058442,6.306,158.58,158.54,0.8185039]
[1724637058607,7.88275637,158.58,158.54,0.8185039]
[1724637058808,7.88280866,158.58,158.54,0.8185039]
[1724637060342,7.8832712,158.57,158.54,0.8185039]
[1724637060518,6.3064,158.57,158.54,0.8185039]
[1724637060715,12.20001056,158.6,158.54,0.8185039]
[1724637061120,12.20001056,158.58,158.54,0.8185039]
[1724637061524,7.88321357,158.57,158.54,0.8185039]
[1724637064545,18.50681056,158.56,158.54,0.8185039]
[1724637064744,1.57701071,158.55,158.54,0.8185039]
[1724637066876,7.88411071,158.55,158.54,0.8185039]
[1724637067667,6.3071,158.55,158.54,0.8185039]
[1724637067874,7.88426551,158.55,158.54,0.8185039]
[1724637068760,22.5653,158.53,158.49,5.0]
[1724637068963,12.20001056,158.5,158.49,5.0]
[1724637069533,18.50911056,158.5,158.49,5.0]
[1724637069999,18.50911056,158.5,158.42,6.3121]
[1724637070000,13.77774098,158.5,158.42,6.3121]
[1724637070177,36.95465898,158.47,158.42,6.3121]
[1724637070469,1.57787967,158.46,158.42,6.3121]